[Event "Titled Tuesday Blitz June 21 Early 2022"]
[White "Rios Escobar, Adan"]
[Black "Matinian, Nikita"]
[WhiteFideId "3403645"]
[BlackFideId "24129100"]
[WhiteElo "2450"]
[BlackElo "2422"]
[Result "0-1"]
[Round "01"]
[TimeControl "180+1"]
[Date "2022.06.22"]
[WhiteClock "0:00:02"]
[BlackClock "0:00:28"]

1. d4 {[%clk 0:02:59]}  Nf6 {[%clk 0:02:59]} 2. g3 {[%clk 0:03:00]}  g6 {[%clk 0:02:59]} 3. Bg2 {[%clk 0:02:58]}  d5 {[%clk 0:02:59]} 4. c4 {[%clk 0:02:57]}  c6 {[%clk 0:02:57]} 5. Qa4 {[%clk 0:02:57]}  Nfd7 {[%clk 0:02:55]} 6. cxd5 {[%clk 0:02:55]}  Nb6 {[%clk 0:02:55]} 7. Qb3 {[%clk 0:02:55]}  cxd5 {[%clk 0:02:55]} 8. Nc3 {[%clk 0:02:53]}  Nc6 {[%clk 0:02:54]} 9. e3 {[%clk 0:02:53]}  Be6 {[%clk 0:02:45]} 10. Nge2 {[%clk 0:02:51]}  Qd7 {[%clk 0:02:32]} 11. Nf4 {[%clk 0:02:42]}  Na5 {[%clk 0:02:27]} 12. Qb5 {[%clk 0:02:32]}  Qxb5 {[%clk 0:02:21]} 13. Nxb5 {[%clk 0:02:32]}  Kd7 {[%clk 0:02:22]} 14. Nc3 {[%clk 0:02:11]}  Rc8 {[%clk 0:02:19]} 15. Ncxd5 {[%clk 0:02:05]}  Nxd5 {[%clk 0:02:18]} 16. Nxd5 {[%clk 0:02:05]}  Bxd5 {[%clk 0:02:18]} 17. Bxd5 {[%clk 0:02:06]}  e6 {[%clk 0:02:19]} 18. Bf3 {[%clk 0:02:01]}  Bb4+ {[%clk 0:02:16]} 19. Kf1 {[%clk 0:01:52]}  b5 {[%clk 0:01:54]} 20. Kg2 {[%clk 0:01:46]}  f5 {[%clk 0:01:50]} 21. Rd1 {[%clk 0:01:45]}  Rc2 {[%clk 0:01:48]} 22. Rb1 {[%clk 0:01:38]}  Rhc8 {[%clk 0:01:45]} 23. a3 {[%clk 0:01:32]}  Bd6 {[%clk 0:01:41]} 24. Bd2 {[%clk 0:01:31]}  Nc4 {[%clk 0:01:37]} 25. Bc1 {[%clk 0:01:10]}  a5 {[%clk 0:01:36]} 26. e4 {[%clk 0:01:07]}  a4 {[%clk 0:01:24]} 27. Kf1 {[%clk 0:00:49]}  Rc7 {[%clk 0:00:46]} 28. h4 {[%clk 0:00:47]}  Rc8 {[%clk 0:00:45]} 29. h5 {[%clk 0:00:46]}  gxh5 {[%clk 0:00:43]} 30. e5 {[%clk 0:00:38]}  Be7 {[%clk 0:00:33]} 31. Bxh5 {[%clk 0:00:33]}  Nb6 {[%clk 0:00:33]} 32. Be2 {[%clk 0:00:29]}  b4 {[%clk 0:00:30]} 33. axb4 {[%clk 0:00:25]}  Bxb4 {[%clk 0:00:31]} 34. Bd3 {[%clk 0:00:25]}  R2c7 {[%clk 0:00:29]} 35. d5 {[%clk 0:00:23]}  Nxd5 {[%clk 0:00:28]} 36. Bxf5 {[%clk 0:00:21]}  exf5 {[%clk 0:00:26]} 37. Rxd5+ {[%clk 0:00:21]}  Ke6 {[%clk 0:00:27]} 38. Rd1 {[%clk 0:00:14]}  Rc2 {[%clk 0:00:27]} 39. Bf4 {[%clk 0:00:11]}  Bc5 {[%clk 0:00:28]} 40. Rd2 {[%clk 0:00:03]}  Rxd2 {[%clk 0:00:28]} 41. Bxd2 {[%clk 0:00:04]}  Bd4 {[%clk 0:00:29]} 42. Bc3 {[%clk 0:00:02]}  Bxc3 {[%clk 0:00:28]} 43. bxc3 {[%clk 0:00:02]}  Rxc3 {[%clk 0:00:29]} 44. Ra1 {[%clk 0:00:03]}  a3 {[%clk 0:00:28]} 45. Ke2 {[%clk 0:00:01]}  Kxe5 {[%clk 0:00:29]} 46. Kd2 {[%clk 0:00:02]}  Rf3 {[%clk 0:00:29]} 47. Ke2 {[%clk 0:00:02]}  Rb3 {[%clk 0:00:28]} 48. Kf1 {[%clk 0:00:02]}  Kd4 {[%clk 0:00:28]} 49. Kg2 {[%clk 0:00:02]}  Kc3 {[%clk 0:00:29]} 50. Rh1 {[%clk 0:00:02]}  a2 {[%clk 0:00:28]} 51. Rxh7 {[%clk 0:00:01]}  a1=Q {[%clk 0:00:28]} 52. Rc7+ {[%clk 0:00:02]}  Kd4 {[%clk 0:00:28]} 53. Rd7+ {[%clk 0:00:02]}  Ke5 {[%clk 0:00:28]} 54. Re7+ {[%clk 0:00:02]}  Kf6 {[%clk 0:00:29]} 55. Re8 {[%clk 0:00:02]}  Qb1 {[%clk 0:00:28]} 0-1


[Site "https://www.chess.com"]

[Event "Titled Tuesday Blitz June 21 Early 2022"]
[White "Rom, Jasper"]
[Black "Yuan, Qingyu"]
[WhiteFideId "2023733"]
[BlackFideId "8609772"]
[WhiteElo "2233"]
[BlackElo "2359"]
[Result "1-0"]
[Round "01"]
[TimeControl "180+1"]
[Date "2022.06.22"]
[WhiteClock "0:00:32"]
[BlackClock "0:00:17"]

1. e4 {[%clk 0:02:57]}  c6 {[%clk 0:02:59]} 2. d4 {[%clk 0:02:56]}  d5 {[%clk 0:03:00]} 3. Nd2 {[%clk 0:02:56]}  dxe4 {[%clk 0:03:00]} 4. Nxe4 {[%clk 0:02:56]}  Nf6 {[%clk 0:03:01]} 5. Nxf6+ {[%clk 0:02:56]}  exf6 {[%clk 0:03:02]} 6. c3 {[%clk 0:02:55]}  Bd6 {[%clk 0:03:02]} 7. Bd3 {[%clk 0:02:56]}  O-O {[%clk 0:03:02]} 8. Qc2 {[%clk 0:02:56]}  Re8+ {[%clk 0:03:03]} 9. Ne2 {[%clk 0:02:56]}  h5 {[%clk 0:03:03]} 10. O-O {[%clk 0:02:52]}  h4 {[%clk 0:03:03]} 11. h3 {[%clk 0:02:44]}  Nd7 {[%clk 0:03:00]} 12. Bd2 {[%clk 0:02:41]}  Nf8 {[%clk 0:02:58]} 13. Rfe1 {[%clk 0:02:42]}  g6 {[%clk 0:02:41]} 14. Bh6 {[%clk 0:02:32]}  f5 {[%clk 0:02:13]} 15. Qd2 {[%clk 0:02:22]}  Nh7 {[%clk 0:02:11]} 16. Bf4 {[%clk 0:02:14]}  Be6 {[%clk 0:02:10]} 17. Bxd6 {[%clk 0:02:10]}  Qxd6 {[%clk 0:02:11]} 18. Qh6 {[%clk 0:02:07]}  Qd8 {[%clk 0:01:49]} 19. Nf4 {[%clk 0:01:53]}  Qg5 {[%clk 0:01:48]} 20. Qxg5 {[%clk 0:01:53]}  Nxg5 {[%clk 0:01:49]} 21. Re3 {[%clk 0:01:47]}  Kf8 {[%clk 0:01:40]} 22. b3 {[%clk 0:01:46]}  Bd7 {[%clk 0:01:27]} 23. Rae1 {[%clk 0:01:43]}  Rxe3 {[%clk 0:01:25]} 24. Rxe3 {[%clk 0:01:43]}  a5 {[%clk 0:01:25]} 25. Kf1 {[%clk 0:01:23]}  Ne6 {[%clk 0:01:14]} 26. Ne2 {[%clk 0:01:09]}  Ke7 {[%clk 0:01:11]} 27. Ng1 {[%clk 0:01:06]}  f4 {[%clk 0:00:45]} 28. Re5 {[%clk 0:00:57]}  f6 {[%clk 0:00:40]} 29. Re1 {[%clk 0:00:55]}  g5 {[%clk 0:00:36]} 30. Nf3 {[%clk 0:00:50]}  Kd6 {[%clk 0:00:32]} 31. Nd2 {[%clk 0:00:50]}  Rf8 {[%clk 0:00:32]} 32. Nc4+ {[%clk 0:00:48]}  Kc7 {[%clk 0:00:30]} 33. Bf5 {[%clk 0:00:46]}  Ng7 {[%clk 0:00:20]} 34. Bxd7 {[%clk 0:00:41]}  Kxd7 {[%clk 0:00:21]} 35. Nxa5 {[%clk 0:00:41]}  b5 {[%clk 0:00:19]} 36. Nb7 {[%clk 0:00:36]}  Nf5 {[%clk 0:00:18]} 37. Nc5+ {[%clk 0:00:34]}  Kc7 {[%clk 0:00:17]} 38. Ne6+ {[%clk 0:00:33]}  Kd6 {[%clk 0:00:17]} 39. Nxf8 {[%clk 0:00:32]} 1-0


[Site "https://www.chess.com"]

[Event "Titled Tuesday Blitz June 21 Early 2022"]
[White "Sanchez, Robert"]
[Black "Gracia Alvarez, Gerardo Antonio"]
[WhiteFideId "2034360"]
[BlackFideId "5109124"]
[WhiteElo "2014"]
[BlackElo "2139"]
[Result "0-1"]
[Round "01"]
[TimeControl "180+1"]
[Date "2022.06.22"]
[WhiteClock "0:01:29"]
[BlackClock "0:00:59"]

1. e4 {[%clk 0:03:00]}  c5 {[%clk 0:03:00]} 2. Nf3 {[%clk 0:03:00]}  Nc6 {[%clk 0:03:00]} 3. d4 {[%clk 0:03:00]}  cxd4 {[%clk 0:03:01]} 4. Nxd4 {[%clk 0:03:01]}  Nf6 {[%clk 0:03:01]} 5. Nc3 {[%clk 0:03:02]}  e5 {[%clk 0:03:01]} 6. Ndb5 {[%clk 0:03:02]}  h6 {[%clk 0:03:01]} 7. a4 {[%clk 0:02:53]}  a6 {[%clk 0:02:52]} 8. Nd6+ {[%clk 0:02:53]}  Bxd6 {[%clk 0:02:52]} 9. Qxd6 {[%clk 0:02:53]}  Qe7 {[%clk 0:02:53]} 10. Qd1 {[%clk 0:02:50]}  O-O {[%clk 0:02:50]} 11. Be2 {[%clk 0:02:45]}  d6 {[%clk 0:02:50]} 12. O-O {[%clk 0:02:45]}  Be6 {[%clk 0:02:50]} 13. Be3 {[%clk 0:02:44]}  Rfd8 {[%clk 0:02:38]} 14. Bf3 {[%clk 0:02:43]}  Qc7 {[%clk 0:02:30]} 15. Nd5 {[%clk 0:02:37]}  Bxd5 {[%clk 0:02:25]} 16. exd5 {[%clk 0:02:38]}  Ne7 {[%clk 0:02:14]} 17. a5 {[%clk 0:02:35]}  Rdc8 {[%clk 0:02:12]} 18. c3 {[%clk 0:02:26]}  e4 {[%clk 0:02:12]} 19. Be2 {[%clk 0:02:24]}  Nfxd5 {[%clk 0:02:05]} 20. Bd4 {[%clk 0:02:24]}  Nf4 {[%clk 0:01:58]} 21. Bg4 {[%clk 0:02:21]}  Re8 {[%clk 0:01:49]} 22. g3 {[%clk 0:02:08]}  Nfg6 {[%clk 0:01:29]} 23. h4 {[%clk 0:02:04]}  Nc6 {[%clk 0:01:26]} 24. h5 {[%clk 0:01:57]}  Nge5 {[%clk 0:01:24]} 25. Be2 {[%clk 0:01:53]}  Nxd4 {[%clk 0:01:23]} 26. cxd4 {[%clk 0:01:52]}  Nc6 {[%clk 0:01:19]} 27. Qd2 {[%clk 0:01:51]}  Qe7 {[%clk 0:01:16]} 28. Qe3 {[%clk 0:01:41]}  Qf6 {[%clk 0:01:13]} 29. Rfd1 {[%clk 0:01:39]}  Rac8 {[%clk 0:01:04]} 30. b4 {[%clk 0:01:35]}  Nxb4 {[%clk 0:01:01]} 31. Rab1 {[%clk 0:01:35]}  Nd5 {[%clk 0:01:00]} 32. Qa3 {[%clk 0:01:34]}  Nc3 {[%clk 0:00:59]} 33. Rxb7 {[%clk 0:01:31]}  Nxe2+ {[%clk 0:00:59]} 34. Kf1 {[%clk 0:01:29]} 0-1


[Site "https://www.chess.com"]

[Event "Titled Tuesday Blitz June 21 Early 2022"]
[White "Sarkar, Justin"]
[Black "Barp, Alberto"]
[WhiteFideId "2010011"]
[BlackFideId "872555"]
[WhiteElo "2020"]
[BlackElo "2229"]
[Result "0-1"]
[Round "01"]
[TimeControl "180+1"]
[Date "2022.06.22"]
[WhiteClock "0:00:01"]
[BlackClock "0:01:22"]

1. d4 {[%clk 0:02:55]}  Nf6 {[%clk 0:02:48]} 2. c4 {[%clk 0:02:53]}  e6 {[%clk 0:02:46]} 3. Nf3 {[%clk 0:02:52]}  Bb4+ {[%clk 0:02:45]} 4. Bd2 {[%clk 0:02:51]}  Bxd2+ {[%clk 0:02:43]} 5. Nbxd2 {[%clk 0:02:49]}  d5 {[%clk 0:02:42]} 6. e3 {[%clk 0:02:44]}  O-O {[%clk 0:02:42]} 7. Bd3 {[%clk 0:02:42]}  Nbd7 {[%clk 0:02:41]} 8. O-O {[%clk 0:02:39]}  c5 {[%clk 0:02:41]} 9. cxd5 {[%clk 0:02:34]}  exd5 {[%clk 0:02:40]} 10. dxc5 {[%clk 0:02:29]}  Nxc5 {[%clk 0:02:41]} 11. Be2 {[%clk 0:02:27]}  Qb6 {[%clk 0:02:42]} 12. Nb3 {[%clk 0:02:18]}  Na4 {[%clk 0:02:40]} 13. Rb1 {[%clk 0:01:19]}  Bf5 {[%clk 0:02:27]} 14. Bd3 {[%clk 0:01:17]}  Bg4 {[%clk 0:02:27]} 15. Be2 {[%clk 0:01:09]}  Bf5 {[%clk 0:02:09]} 16. Bd3 {[%clk 0:01:09]}  Be4 {[%clk 0:02:09]} 17. Nfd4 {[%clk 0:00:53]}  Rac8 {[%clk 0:02:00]} 18. f3 {[%clk 0:00:45]}  Bg6 {[%clk 0:01:54]} 19. Bxg6 {[%clk 0:00:33]}  hxg6 {[%clk 0:01:54]} 20. Qd2 {[%clk 0:00:33]}  Rfe8 {[%clk 0:01:51]} 21. Rbc1 {[%clk 0:00:29]}  Rc4 {[%clk 0:01:50]} 22. Na5 {[%clk 0:00:16]}  Rb4 {[%clk 0:01:38]} 23. Nab3 {[%clk 0:00:09]}  Qd6 {[%clk 0:01:34]} 24. Rc2 {[%clk 0:00:06]}  Nb6 {[%clk 0:01:33]} 25. Qf2 {[%clk 0:00:02]}  Nc4 {[%clk 0:01:32]} 26. Rc3 {[%clk 0:00:02]}  Qe5 {[%clk 0:01:28]} 27. a3 {[%clk 0:00:01]}  Rb6 {[%clk 0:01:27]} 28. Rfc1 {[%clk 0:00:01]}  a6 {[%clk 0:01:25]} 29. Nd2 {[%clk 0:00:01]}  Nxb2 {[%clk 0:01:22]} 0-1


[Site "https://www.chess.com"]

[Event "Titled Tuesday Blitz June 21 Early 2022"]
[White "Schmakel, Sam"]
[Black "Ljukin, Sergei"]
[WhiteFideId "2039311"]
[BlackFideId "14102200"]
[WhiteElo "2356"]
[BlackElo "2312"]
[Result "0-1"]
[Round "01"]
[TimeControl "180+1"]
[Date "2022.06.22"]
[WhiteClock "0:00:22"]
[BlackClock "0:01:14"]

1. Nf3 {[%clk 0:02:59]}  d5 {[%clk 0:02:59]} 2. g3 {[%clk 0:02:59]}  Nc6 {[%clk 0:02:59]} 3. d4 {[%clk 0:02:59]}  Bg4 {[%clk 0:02:59]} 4. Bg2 {[%clk 0:02:57]}  Qd7 {[%clk 0:02:58]} 5. c4 {[%clk 0:02:48]}  dxc4 {[%clk 0:02:57]} 6. d5 {[%clk 0:02:48]}  O-O-O {[%clk 0:02:55]} 7. Nc3 {[%clk 0:02:48]}  Nb4 {[%clk 0:02:51]} 8. Ne5 {[%clk 0:02:35]}  Qf5 {[%clk 0:02:43]} 9. Nxg4 {[%clk 0:02:35]}  Qxg4 {[%clk 0:02:29]} 10. Qa4 {[%clk 0:02:21]}  e6 {[%clk 0:02:29]} 11. O-O {[%clk 0:02:06]}  a6 {[%clk 0:02:21]} 12. dxe6 {[%clk 0:01:42]}  fxe6 {[%clk 0:02:20]} 13. a3 {[%clk 0:01:38]}  Nd5 {[%clk 0:02:20]} 14. Bd2 {[%clk 0:01:34]}  Ngf6 {[%clk 0:02:15]} 15. e4 {[%clk 0:01:26]}  Nb6 {[%clk 0:02:08]} 16. Qc2 {[%clk 0:01:25]}  Bc5 {[%clk 0:02:01]} 17. Rad1 {[%clk 0:01:20]}  e5 {[%clk 0:01:59]} 18. Na4 {[%clk 0:01:13]}  Nxa4 {[%clk 0:01:45]} 19. Qxa4 {[%clk 0:01:14]}  Nxe4 {[%clk 0:01:37]} 20. Qxc4 {[%clk 0:00:31]}  Bxf2+ {[%clk 0:01:24]} 21. Rxf2 {[%clk 0:00:29]}  Qxd1+ {[%clk 0:01:23]} 22. Rf1 {[%clk 0:00:29]}  Qxd2 {[%clk 0:01:14]} 23. Qxe4 {[%clk 0:00:29]}  Qd4+ {[%clk 0:01:14]} 24. Qxd4 {[%clk 0:00:22]}  exd4 {[%clk 0:01:14]} 0-1


[Site "https://www.chess.com"]

[Event "Titled Tuesday Blitz June 21 Early 2022"]
[White "Shuvalova, Polina"]
[Black "Lorne, Ras Malaku"]
[WhiteFideId "24171760"]
[BlackFideId "7400330"]
[WhiteElo "2330"]
[BlackElo "2199"]
[Result "1-0"]
[Round "01"]
[TimeControl "180+1"]
[Date "2022.06.22"]
[WhiteClock "0:02:33"]
[BlackClock "0:01:33"]

1. d4 {[%clk 0:02:57]}  Nf6 {[%clk 0:02:58]} 2. Nc3 {[%clk 0:02:58]}  d5 {[%clk 0:02:57]} 3. Bg5 {[%clk 0:02:58]}  Bf5 {[%clk 0:02:55]} 4. Bxf6 {[%clk 0:02:57]}  exf6 {[%clk 0:02:56]} 5. e3 {[%clk 0:02:57]}  c6 {[%clk 0:02:52]} 6. Bd3 {[%clk 0:02:57]}  Qd7 {[%clk 0:02:49]} 7. Nf3 {[%clk 0:02:56]}  Bd6 {[%clk 0:02:44]} 8. O-O {[%clk 0:02:55]}  O-O {[%clk 0:02:44]} 9. e4 {[%clk 0:02:54]}  dxe4 {[%clk 0:02:41]} 10. Nxe4 {[%clk 0:02:55]}  Bxe4 {[%clk 0:02:39]} 11. Bxe4 {[%clk 0:02:54]}  Na6 {[%clk 0:02:32]} 12. c3 {[%clk 0:02:55]}  Rfe8 {[%clk 0:02:30]} 13. Re1 {[%clk 0:02:55]}  Rad8 {[%clk 0:02:26]} 14. Qc2 {[%clk 0:02:54]}  g6 {[%clk 0:02:24]} 15. Rad1 {[%clk 0:02:52]}  Nc7 {[%clk 0:02:22]} 16. g3 {[%clk 0:02:51]}  Bf8 {[%clk 0:02:21]} 17. Kg2 {[%clk 0:02:50]}  Bg7 {[%clk 0:02:20]} 18. a4 {[%clk 0:02:48]}  Nd5 {[%clk 0:02:14]} 19. Qb3 {[%clk 0:02:42]}  b6 {[%clk 0:02:10]} 20. Bxd5 {[%clk 0:02:41]}  cxd5 {[%clk 0:02:09]} 21. Qb5 {[%clk 0:02:39]}  Qxb5 {[%clk 0:02:01]} 22. axb5 {[%clk 0:02:40]}  Kf8 {[%clk 0:02:01]} 23. Ra1 {[%clk 0:02:39]}  Rxe1 {[%clk 0:02:00]} 24. Nxe1 {[%clk 0:02:40]}  Rd7 {[%clk 0:02:00]} 25. Nd3 {[%clk 0:02:40]}  f5 {[%clk 0:01:58]} 26. Nb4 {[%clk 0:02:40]}  Ke7 {[%clk 0:01:52]} 27. Nc6+ {[%clk 0:02:40]}  Kd6 {[%clk 0:01:49]} 28. Nxa7 {[%clk 0:02:37]}  g5 {[%clk 0:01:35]} 29. Ra6 {[%clk 0:02:36]}  Rb7 {[%clk 0:01:34]} 30. Nc8+ {[%clk 0:02:33]}  Kc7 {[%clk 0:01:33]} 31. Ne7 {[%clk 0:02:33]} 1-0


[Site "https://www.chess.com"]

[Event "Titled Tuesday Blitz June 21 Early 2022"]
[White "Slugin, Sergey"]
[Black "Hoffmann, Asa"]
[WhiteFideId "4122569"]
[BlackFideId "2001470"]
[WhiteElo "2358"]
[BlackElo "2117"]
[Result "1-0"]
[Round "01"]
[TimeControl "180+1"]
[Date "2022.06.22"]
[WhiteClock "0:01:21"]
[BlackClock "0:01:21"]

1. c4 {[%clk 0:02:55]}  Nf6 {[%clk 0:02:58]} 2. Nc3 {[%clk 0:02:55]}  d6 {[%clk 0:02:55]} 3. d4 {[%clk 0:02:53]}  Bf5 {[%clk 0:02:52]} 4. Nf3 {[%clk 0:02:53]}  Nbd7 {[%clk 0:02:50]} 5. g3 {[%clk 0:02:45]}  h6 {[%clk 0:02:49]} 6. Bg2 {[%clk 0:02:46]}  c6 {[%clk 0:02:49]} 7. O-O {[%clk 0:02:46]}  e5 {[%clk 0:02:49]} 8. Re1 {[%clk 0:02:26]}  e4 {[%clk 0:02:47]} 9. Nd2 {[%clk 0:02:19]}  d5 {[%clk 0:02:46]} 10. Qb3 {[%clk 0:02:17]}  Nb6 {[%clk 0:02:42]} 11. c5 {[%clk 0:02:12]}  Nbd7 {[%clk 0:02:40]} 12. Qxb7 {[%clk 0:02:12]}  Be7 {[%clk 0:02:20]} 13. Qxc6 {[%clk 0:02:11]}  Rc8 {[%clk 0:02:19]} 14. Qa4 {[%clk 0:01:55]}  O-O {[%clk 0:02:18]} 15. Nf1 {[%clk 0:01:54]}  a5 {[%clk 0:02:05]} 16. Nb5 {[%clk 0:01:44]}  Rb8 {[%clk 0:01:56]} 17. Bf4 {[%clk 0:01:38]}  Rb7 {[%clk 0:01:51]} 18. c6 {[%clk 0:01:35]}  Rxb5 {[%clk 0:01:50]} 19. Qxb5 {[%clk 0:01:34]}  Nb6 {[%clk 0:01:47]} 20. c7 {[%clk 0:01:34]}  Qd7 {[%clk 0:01:44]} 21. Qxb6 {[%clk 0:01:34]}  Bh3 {[%clk 0:01:36]} 22. Rac1 {[%clk 0:01:31]}  Rc8 {[%clk 0:01:36]} 23. Ne3 {[%clk 0:01:29]}  Nh5 {[%clk 0:01:33]} 24. Be5 {[%clk 0:01:26]}  f6 {[%clk 0:01:30]} 25. Bxh3 {[%clk 0:01:23]}  Qxh3 {[%clk 0:01:29]} 26. Bd6 {[%clk 0:01:22]}  Qe6 {[%clk 0:01:26]} 27. Bc5 {[%clk 0:01:21]}  Qd7 {[%clk 0:01:21]} 28. Bxe7 {[%clk 0:01:20]}  Qxe7 {[%clk 0:01:21]} 29. Nxd5 {[%clk 0:01:21]} 1-0


[Site "https://www.chess.com"]

[Event "Titled Tuesday Blitz June 21 Early 2022"]
[White "Starozhilov, Leonid"]
[Black "Petrova, Irina"]
[WhiteFideId "14106752"]
[BlackFideId "14124122"]
[WhiteElo "2414"]
[BlackElo "1993"]
[Result "1-0"]
[Round "01"]
[TimeControl "180+1"]
[Date "2022.06.22"]
[WhiteClock "0:00:27"]
[BlackClock "0:00:24"]

1. e4 {[%clk 0:02:58]}  d6 {[%clk 0:03:00]} 2. d4 {[%clk 0:02:58]}  Nf6 {[%clk 0:03:00]} 3. Nc3 {[%clk 0:02:58]}  e5 {[%clk 0:03:00]} 4. Nge2 {[%clk 0:02:57]}  exd4 {[%clk 0:02:58]} 5. Nxd4 {[%clk 0:02:56]}  Be7 {[%clk 0:02:59]} 6. g3 {[%clk 0:02:53]}  O-O {[%clk 0:02:57]} 7. Bg2 {[%clk 0:02:54]}  Re8 {[%clk 0:02:58]} 8. O-O {[%clk 0:02:54]}  Bf8 {[%clk 0:02:58]} 9. Re1 {[%clk 0:02:50]}  Na6 {[%clk 0:02:53]} 10. Nb3 {[%clk 0:02:46]}  c6 {[%clk 0:02:47]} 11. h3 {[%clk 0:02:45]}  Bd7 {[%clk 0:02:42]} 12. Bf4 {[%clk 0:02:44]}  Qc7 {[%clk 0:02:05]} 13. Qd2 {[%clk 0:02:35]}  Rad8 {[%clk 0:02:04]} 14. Rad1 {[%clk 0:02:35]}  Bc8 {[%clk 0:02:02]} 15. g4 {[%clk 0:02:21]}  Qe7 {[%clk 0:01:41]} 16. Bg3 {[%clk 0:02:17]}  Be6 {[%clk 0:01:17]} 17. Nd4 {[%clk 0:02:01]}  Bc8 {[%clk 0:01:16]} 18. f4 {[%clk 0:01:53]}  Nc5 {[%clk 0:01:13]} 19. b4 {[%clk 0:01:49]}  Na6 {[%clk 0:01:06]} 20. a3 {[%clk 0:01:45]}  c5 {[%clk 0:01:00]} 21. Nf5 {[%clk 0:01:46]}  Bxf5 {[%clk 0:00:59]} 22. exf5 {[%clk 0:01:46]}  Qc7 {[%clk 0:00:55]} 23. b5 {[%clk 0:01:45]}  Nb8 {[%clk 0:00:53]} 24. Bh4 {[%clk 0:01:40]}  Nbd7 {[%clk 0:00:48]} 25. g5 {[%clk 0:01:33]}  Nh5 {[%clk 0:00:48]} 26. Nd5 {[%clk 0:01:32]}  Qc8 {[%clk 0:00:46]} 27. Bf3 {[%clk 0:01:31]}  g6 {[%clk 0:00:46]} 28. Bxh5 {[%clk 0:01:24]}  gxh5 {[%clk 0:00:46]} 29. g6 {[%clk 0:01:19]}  fxg6 {[%clk 0:00:43]} 30. Bxd8 {[%clk 0:01:17]}  Qxd8 {[%clk 0:00:40]} 31. Qg2 {[%clk 0:01:10]}  Rxe1+ {[%clk 0:00:38]} 32. Rxe1 {[%clk 0:01:10]}  Kf7 {[%clk 0:00:36]} 33. fxg6+ {[%clk 0:00:58]}  hxg6 {[%clk 0:00:37]} 34. f5 {[%clk 0:00:58]}  g5 {[%clk 0:00:30]} 35. Qf3 {[%clk 0:00:47]}  g4 {[%clk 0:00:27]} 36. hxg4 {[%clk 0:00:46]}  Qg5 {[%clk 0:00:27]} 37. Nf4 {[%clk 0:00:27]}  hxg4 {[%clk 0:00:26]} 38. Qd5+ {[%clk 0:00:27]}  Kg7 {[%clk 0:00:24]} 39. Ne6+ {[%clk 0:00:27]} 1-0


[Site "https://www.chess.com"]

[Event "Titled Tuesday Blitz June 21 Early 2022"]
[White "Tari, Aryan"]
[Black "Ronka, Erik"]
[WhiteFideId "1510045"]
[BlackFideId "505080"]
[WhiteElo "2567"]
[BlackElo "2264"]
[Result "1-0"]
[Round "01"]
[TimeControl "180+1"]
[Date "2022.06.21"]
[WhiteClock "0:00:17"]
[BlackClock "0:00:15"]

1. Nc3 {[%clk 0:02:56]}  d5 {[%clk 0:02:58]} 2. Nf3 {[%clk 0:02:54]}  Nf6 {[%clk 0:02:58]} 3. g3 {[%clk 0:02:54]}  Bg4 {[%clk 0:02:58]} 4. Bg2 {[%clk 0:02:50]}  Nbd7 {[%clk 0:02:58]} 5. d4 {[%clk 0:02:49]}  e6 {[%clk 0:02:58]} 6. Bf4 {[%clk 0:02:39]}  Bb4 {[%clk 0:02:54]} 7. O-O {[%clk 0:02:39]}  O-O {[%clk 0:02:54]} 8. Nb5 {[%clk 0:02:31]}  c6 {[%clk 0:02:39]} 9. c3 {[%clk 0:02:31]}  Be7 {[%clk 0:02:32]} 10. Na3 {[%clk 0:02:24]}  c5 {[%clk 0:02:26]} 11. h3 {[%clk 0:01:56]}  Bxf3 {[%clk 0:02:14]} 12. Bxf3 {[%clk 0:01:57]}  cxd4 {[%clk 0:02:15]} 13. cxd4 {[%clk 0:01:57]}  Bxa3 {[%clk 0:02:07]} 14. bxa3 {[%clk 0:01:57]}  Nb6 {[%clk 0:02:08]} 15. Qb3 {[%clk 0:01:55]}  Qd7 {[%clk 0:02:01]} 16. Rab1 {[%clk 0:01:33]}  Rfc8 {[%clk 0:01:13]} 17. a4 {[%clk 0:01:33]}  Qxa4 {[%clk 0:01:00]} 18. Qxa4 {[%clk 0:01:32]}  Nxa4 {[%clk 0:01:01]} 19. Rxb7 {[%clk 0:01:33]}  h6 {[%clk 0:00:58]} 20. Rfb1 {[%clk 0:01:30]}  Nb6 {[%clk 0:00:56]} 21. Rc1 {[%clk 0:01:13]}  Rxc1+ {[%clk 0:00:36]} 22. Bxc1 {[%clk 0:01:14]}  Ne8 {[%clk 0:00:30]} 23. Ba3 {[%clk 0:01:12]}  Nc4 {[%clk 0:00:28]} 24. Bc5 {[%clk 0:01:11]}  a5 {[%clk 0:00:27]} 25. a4 {[%clk 0:01:06]}  Ned6 {[%clk 0:00:23]} 26. Rd7 {[%clk 0:01:04]}  Nf5 {[%clk 0:00:23]} 27. e4 {[%clk 0:00:59]}  dxe4 {[%clk 0:00:20]} 28. Bxe4 {[%clk 0:01:00]}  Rc8 {[%clk 0:00:20]} 29. Bb7 {[%clk 0:00:54]}  Rb8 {[%clk 0:00:20]} 30. Ba7 {[%clk 0:00:53]}  Re8 {[%clk 0:00:20]} 31. Ba6 {[%clk 0:00:51]}  Nb2 {[%clk 0:00:20]} 32. Bb5 {[%clk 0:00:50]}  Rc8 {[%clk 0:00:19]} 33. Bb6 {[%clk 0:00:36]}  Rc1+ {[%clk 0:00:20]} 34. Kg2 {[%clk 0:00:35]}  Ra1 {[%clk 0:00:21]} 35. Ra7 {[%clk 0:00:32]}  Nxa4 {[%clk 0:00:21]} 36. Rxa5 {[%clk 0:00:32]}  Rb1 {[%clk 0:00:20]} 37. Bc5 {[%clk 0:00:22]}  Nc3 {[%clk 0:00:19]} 38. Bd3 {[%clk 0:00:22]}  Rc1 {[%clk 0:00:18]} 39. g4 {[%clk 0:00:21]}  Nh4+ {[%clk 0:00:16]} 40. Kg3 {[%clk 0:00:21]}  Ng6 {[%clk 0:00:16]} 41. h4 {[%clk 0:00:19]}  Nd5 {[%clk 0:00:14]} 42. h5 {[%clk 0:00:18]}  Rc3 {[%clk 0:00:15]} 43. Ra8+ {[%clk 0:00:16]}  Kh7 {[%clk 0:00:14]} 44. hxg6+ {[%clk 0:00:17]}  fxg6 {[%clk 0:00:15]} 45. Ra3 {[%clk 0:00:17]} 1-0


[Site "https://www.chess.com"]